bitfinex/quotes_SOLUSD_20240703
["timestamp","ask_amount","ask_price","bid_price","bid_amount"]
[1720008142198,6.9496,143.9,143.85,6.9514]
[1720008142503,6.9496,143.9,143.86,51.9511]
[1720008142795,6.9496,143.9,143.86,45.0]
[1720008143198,6.9496,143.9,143.86,53.34101203]
[1720008143998,6.90829565,143.93,143.87,6.9504]
[1720008144177,20.0,143.92,143.88,45.0]
[1720008144575,6.9489,143.91,143.88,45.0]
[1720008145204,6.9493,143.9,143.87,45.0]
[1720008146894,6.90829565,143.93,143.88,17.82771449]
[1720008146895,6.9481,143.93,143.88,17.82771449]
[1720008147095,6.9484,143.92,143.89,45.0]
[1720008148695,0.17,143.93,143.85,17.3781]
[1720008148897,20.34,143.93,143.84,6.0344]
[1720008149106,6.9499,143.89,143.84,12.9862]
[1720008149293,6.9499,143.89,143.85,6.9516]
[1720008149698,6.9494,143.9,143.85,6.9516]
[1720008150000,6.9486,143.92,143.87,6.9504]
[1720008150183,20.17,143.93,143.86,24.3286]
[1720008150524,49.8608,143.92,143.84,6.0344]
[1720008150812,6.9507,143.87,143.84,6.0344]
[1720008151014,6.9504,143.88,143.84,6.0344]
[1720008151512,6.9504,143.88,143.85,45.0]
[1720008152614,20.34,143.91,143.85,45.0]
[1720008154717,6.9517,143.85,143.82,0.8123711]
[1720008154915,6.9521,143.84,143.82,0.8123711]
[1720008156096,6.9526,143.83,143.82,0.8123711]
[1720008156708,39.6126,143.83,143.82,0.8123711]
[1720008157419,39.7826,143.83,143.82,0.8123711]
[1720008157626,59.7826,143.83,143.82,0.8123711]
[1720008159423,59.7826,143.83,143.72,22.5178]
[1720008159424,6.956,143.76,143.72,22.5178]
[1720008159630,6.956,143.76,143.71,6.9584]
[1720008159998,6.956,143.76,143.72,6.9578]
[1720008160930,6.9568,143.75,143.7,24.3552]
[1720008161297,32.83,143.77,143.69,28.7821]
[1720008161298,0.34,143.74,143.69,28.7821]
[1720008161495,32.83,143.74,143.69,28.7821]
[1720008161939,32.49,143.74,143.71,6.9582]
[1720008162128,6.956,143.76,143.72,6.9576]
[1720008162305,6.9555,143.77,143.72,6.9576]
[1720008162523,26.956,143.76,143.72,6.9576]
[1720008164025,6.9568,143.75,143.71,17.3953]
[1720008164224,32.49,143.75,143.72,6.9578]
[1720008164828,32.49,143.75,143.71,24.3536]
[1720008165120,32.49,143.75,143.72,45.0]
[1720008165512,32.49,143.75,143.72,51.9578]
[1720008166121,32.49,143.75,143.72,45.0]
[1720008167007,39.4465,143.75,143.72,45.0]
[1720008167726,6.9585,143.71,143.68,0.8123711]
[1720008168308,50.0555,143.72,143.68,0.8123711]
[1720008168505,6.959,143.7,143.68,0.8123711]
[1720008168702,6.9585,143.71,143.68,0.8123711]
[1720008168917,39.4482,143.72,143.68,7.7721711]
[1720008169119,6.959,143.7,143.68,0.8123711]
[1720008170016,6.9586,143.71,143.68,0.8123711]
[1720008170328,32.49,143.72,143.68,0.8123711]
[1720008170329,6.9589,143.7,143.68,0.8123711]
[1720008171127,32.49,143.72,143.68,0.8123711]
[1720008171128,6.9594,143.69,143.68,0.8123711]
[1720008171329,6.959,143.7,143.68,0.8123711]
[1720008171718,6.9586,143.71,143.68,0.8123711]
[1720008171914,26.9586,143.71,143.68,0.8123711]
[1720008172817,20.0,143.71,143.68,0.8123711]
[1720008173016,26.9585,143.71,143.68,0.8123711]
[1720008173213,6.9589,143.7,143.68,0.8123711]
[1720008175706,6.9586,143.71,143.68,0.8123711]
[1720008176238,6.9591,143.7,143.68,0.8123711]
[1720008178225,6.9594,143.69,143.68,0.8123711]
[1720008179913,6.9591,143.7,143.68,0.8123711]
[1720008180314,32.49,143.73,143.68,0.8123711]
[1720008180315,6.9586,143.71,143.68,0.8123711]
[1720008180517,6.958,143.72,143.68,0.8123711]
[1720008180838,6.9592,143.7,143.68,0.8123711]
[1720008182739,6.9586,143.71,143.68,0.8123711]
[1720008183325,6.9581,143.72,143.68,7.7721711]
[1720008183831,32.49,143.73,143.68,18.2117711]
[1720008184023,6.9567,143.75,143.7,24.3558]
[1720008184222,6.9567,143.75,143.71,45.0]
[1720008184416,6.9571,143.74,143.71,45.0]
[1720008185016,6.9575,143.73,143.71,45.0]
[1720008185535,6.9575,143.73,143.7,45.0]
[1720008185730,6.9572,143.74,143.7,45.0]
[1720008186036,32.49,143.76,143.7,51.9587]
[1720008186233,20.0,143.75,143.7,51.9587]
[1720008186418,20.0,143.75,143.7,45.0]
[1720008186625,6.9577,143.73,143.7,45.0]
[1720008187321,37.3916,143.75,143.7,45.0]
[1720008187518,6.9584,143.71,143.7,45.0]
[1720008188021,6.958,143.72,143.7,45.0]
[1720008188220,6.958,143.72,143.68,7.7722711]
[1720008188425,6.9576,143.73,143.68,25.1718711]
[1720008188824,6.9571,143.74,143.7,6.9586]
[1720008191620,6.9571,143.74,143.69,6.9592]
[1720008194038,6.9575,143.73,143.69,6.9592]
[1720008194545,6.9575,143.73,143.68,25.1716711]
[1720008195636,6.9575,143.73,143.69,6.9593]
[1720008196343,6.9572,143.74,143.7,6.9588]
[1720008198046,6.9575,143.73,143.69,6.9592]
[1720008199750,16.31,143.71,143.69,6.9592]
[1720008200057,16.31,143.7,143.69,6.9592]
[1720008200534,16.31,143.7,143.68,18.2119711]
[1720008201445,16.31,143.7,143.68,25.1715711]
[1720008205041,16.31,143.7,143.69,6.9594]
[1720008205436,6.957,143.74,143.7,6.9586]
[1720008205641,16.31,143.71,143.7,6.9586]
[1720008206147,16.31,143.72,143.7,6.9586]
[1720008206352,16.31,143.71,143.7,6.9586]
[1720008207945,16.31,143.71,143.69,24.3565]
[1720008208331,6.9575,143.73,143.68,0.8123711]
[1720008208332,23.2692,143.7,143.68,0.8123711]
[1720008208545,16.31,143.69,143.68,0.8123711]
[1720008209323,6.9586,143.71,143.68,0.8123711]
[1720008209531,16.31,143.69,143.68,0.8123711]
[1720008210553,6.9585,143.71,143.68,0.8123711]
[1720008210847,16.31,143.69,143.68,0.8123711]
[1720008213043,23.2694,143.69,143.68,0.8123711]
[1720008213227,23.4394,143.69,143.68,0.8123711]
[1720008213652,23.6094,143.69,143.68,0.8123711]
[1720008214367,43.6094,143.69,143.68,0.8123711]
[1720008218034,20.0,143.69,143.68,0.8123711]
[1720008218239,43.2694,143.69,143.68,0.8123711]
[1720008219242,43.4394,143.69,143.68,0.8123711]
[1720008220455,50.51769565,143.69,143.68,0.8123711]
[1720008221038,6.9618,143.65,143.61,39.8259]
[1720008221235,16.31,143.62,143.61,22.4188]
[1720008221441,16.31,143.62,143.58,17.411]
[1720008221648,6.9625,143.63,143.58,24.3755]
[1720008221834,16.31,143.6,143.57,6.9651]
[1720008222037,16.31,143.58,143.55,17.4144]
[1720008222243,16.31,143.57,143.55,17.4144]
[1720008222743,16.31,143.56,143.53,22.3369711]
[1720008222944,16.31,143.55,143.53,22.3369711]
[1720008223356,16.31,143.55,143.53,29.3038711]
[1720008223570,16.31,143.55,143.53,22.3369711]
[1720008223865,6.9643,143.59,143.54,24.3828]
[1720008224254,32.7,143.61,143.54,17.4162]
[1720008224448,6.9626,143.63,143.58,6.9643]
[1720008224768,6.9619,143.64,143.59,6.9641]
[1720008224940,6.9624,143.63,143.59,6.9641]
[1720008225443,32.7,143.65,143.55,55.7201]
[1720008225637,6.9615,143.65,143.6,24.3722]
[1720008226049,6.9619,143.64,143.6,17.4089]
[1720008226274,6.9619,143.64,143.6,24.3726]
[1720008227787,55.64989565,143.68,143.6,24.3726]
[1720008227977,6.9615,143.65,143.6,24.3726]
[1720008228157,6.9607,143.67,143.62,17.4066]
[1720008228356,20.0,143.66,143.62,24.3692]
[1720008228665,26.9609,143.66,143.62,24.3692]
[1720008228978,6.9613,143.65,143.6,6.9634]
[1720008229474,6.9619,143.64,143.6,6.9634]
[1720008229659,20.0,143.66,143.59,46.9604]
[1720008229859,6.9621,143.64,143.59,46.9604]
[1720008230281,6.9621,143.64,143.56,41.06]
[1720008230282,17.7437,143.65,143.56,41.4891]
[1720008230495,6.9645,143.59,143.56,21.4891]
[1720008231158,6.9647,143.58,143.56,21.4891]
[1720008231360,6.9646,143.59,143.56,21.4891]
[1720008231657,6.9648,143.58,143.54,17.4165]
[1720008233462,6.9652,143.57,143.54,17.4165]
[1720008233662,6.9652,143.57,143.53,7.7794711]
[1720008233986,6.9652,143.57,143.53,0.8123711]
[1720008234797,6.9657,143.56,143.53,0.8123711]
[1720008235092,7.1348,143.58,143.53,25.1966711]
[1720008235279,6.966,143.56,143.53,0.8123711]
[1720008235866,6.9657,143.56,143.53,0.8123711]
[1720008236184,32.7,143.57,143.53,0.8123711]
[1720008236381,0.17,143.55,143.53,0.8123711]
[1720008236556,6.9666,143.54,143.53,0.8123711]
[1720008236960,39.8364,143.55,143.53,0.8123711]
[1720008237188,6.9666,143.54,143.53,0.8123711]
[1720008237389,16.0978,143.58,143.53,0.8123711]
[1720008237390,15.4669,143.63,143.53,0.8123711]
[1720008237623,32.7,143.61,143.57,6.9651]
[1720008237799,17.4032,143.66,143.59,6.9639]
[1720008237800,6.962,143.64,143.59,6.9639]
[1720008238100,39.6611,143.66,143.61,6.9632]
[1720008238393,6.961,143.66,143.62,6.9627]
[1720008239573,13.86879565,143.67,143.62,6.9627]
[1720008240084,6.9605,143.67,143.62,6.9627]
[1720008241067,39.60829565,143.71,143.64,6.9618]
[1720008241277,6.90829565,143.71,143.65,6.9613]
[1720008241477,6.90829565,143.71,143.67,6.9601]
[1720008241704,6.9593,143.7,143.65,24.3636]
[1720008242008,6.9591,143.7,143.65,24.3636]
[1720008242184,6.9585,143.71,143.65,17.4024]
[1720008242386,6.9585,143.71,143.66,6.9607]
[1720008242622,50.0943,143.73,143.64,6.9618]
[1720008243381,6.9595,143.69,143.64,6.9618]
[1720008245501,17.3967,143.71,143.62,17.4063]
[1720008245684,6.9605,143.67,143.62,24.3687]
[1720008246078,6.9605,143.67,143.63,6.9622]
[1720008246496,33.04,143.7,143.63,6.9622]
[1720008246497,6.9599,143.69,143.63,6.9622]
[1720008246710,33.04,143.7,143.64,6.9617]
[1720008247004,6.9605,143.67,143.63,6.9621]
[1720008247802,6.9605,143.67,143.62,24.3689]
[1720008248416,6.96,143.68,143.62,17.4063]
[1720008248629,6.9592,143.7,143.65,6.9613]
[1720008248785,32.7,143.73,143.66,17.402]
[1720008249102,6.958,143.72,143.67,22.0022]
[1720008249410,6.9585,143.71,143.67,22.0025]
[1720008249708,6.9591,143.7,143.67,15.0422]
[1720008250414,32.7,143.73,143.67,15.0422]
[1720008250711,6.9589,143.7,143.67,15.0422]
[1720008250999,32.7,143.73,143.67,15.0422]
[1720008251000,6.9594,143.69,143.67,15.0422]
[1720008251387,6.959,143.7,143.67,15.0422]
[1720008251887,6.9595,143.69,143.67,15.0422]
[1720008252626,32.7,143.73,143.67,15.0422]
[1720008252801,6.9585,143.71,143.67,22.0025]
[1720008253119,6.9593,143.7,143.67,15.0422]
[1720008253820,32.7,143.73,143.67,15.0422]
[1720008254290,0.34,143.72,143.65,6.3553]
[1720008254981,6.9602,143.68,143.65,6.3553]
[1720008255204,17.735,143.72,143.65,6.3553]
[1720008255413,17.735,143.72,143.65,13.3165]
[1720008255594,17.735,143.72,143.66,6.9607]
[1720008255595,0.17,143.72,143.66,6.9607]
[1720008256091,6.9586,143.71,143.66,6.9607]
[1720008256696,32.7,143.73,143.67,6.9602]
[1720008257315,0.17,143.74,143.67,6.9602]
[1720008257510,0.34,143.74,143.67,6.9602]
[1720008258203,6.9588,143.71,143.66,24.3623]
[1720008258521,6.9586,143.71,143.66,24.3623]
[1720008258901,6.9586,143.71,143.66,24.3622]
[1720008259311,6.959,143.7,143.66,24.3622]
[1720008259508,6.959,143.7,143.66,17.4016]
[1720008259807,6.9595,143.69,143.66,17.4016]
[1720008260003,6.9595,143.69,143.65,13.3165]
[1720008260004,6.9599,143.68,143.65,6.3553]
[1720008260315,6.9604,143.67,143.65,6.3553]
[1720008260511,6.9608,143.66,143.65,6.3553]
[1720008260699,6.9605,143.67,143.63,33.2585]
[1720008260905,6.9616,143.65,143.63,15.8536]
[1720008261211,6.961,143.66,143.63,15.8536]
[1720008263313,50.0995,143.69,143.61,6.1495]
[1720008263314,17.4012,143.67,143.61,6.1495]
[1720008263519,6.9619,143.64,143.61,6.1495]
[1720008264016,6.9618,143.64,143.61,6.1495]
[1720008264898,17.4012,143.67,143.61,6.1495]
[1720008265099,6.9614,143.65,143.61,6.1495]
[1720008265316,6.9619,143.64,143.61,6.1495]
[1720008266414,6.9615,143.65,143.61,13.1126]
[1720008266615,6.9607,143.67,143.61,23.5574]
[1720008266925,0.17,143.68,143.61,23.5574]
[1720008267115,0.34,143.68,143.61,23.5574]
[1720008267303,32.7,143.69,143.61,23.5574]
[1720008267504,17.3948,143.73,143.63,17.4056]
[1720008267699,17.3948,143.73,143.66,6.9607]
[1720008267700,6.9593,143.7,143.66,6.9607]
[1720008268017,6.9593,143.7,143.65,33.4414]
[1720008268018,6.9581,143.72,143.67,17.4007]
[1720008268199,6.9581,143.72,143.67,24.3608]
[1720008268399,6.9585,143.71,143.67,24.3608]
[1720008268711,6.959,143.7,143.67,17.4007]
[1720008269025,6.959,143.7,143.66,6.9607]
[1720008269527,23.51979565,143.75,143.68,17.3994]
[1720008269528,56.21979565,143.75,143.68,17.3994]
[1720008270004,6.9585,143.71,143.67,6.9603]
[1720008271006,6.9591,143.7,143.66,13.3636]
[1720008271406,6.9591,143.7,143.66,6.4029]
[1720008272124,6.9594,143.69,143.66,6.4029]
[1720008272329,6.9599,143.68,143.65,16.0382]
[1720008272531,6.9615,143.65,143.62,6.4874]
[1720008272713,50.099,143.69,143.62,6.4874]
[1720008272907,0.17,143.68,143.62,6.4874]
[1720008273106,6.9619,143.64,143.62,6.4874]
[1720008273428,0.17,143.68,143.58,6.4874]
[1720008273733,6.964,143.6,143.56,33.4546]
[1720008273901,6.964,143.6,143.56,40.4202]
[1720008274101,32.7,143.64,143.56,40.4202]
[1720008274102,6.9634,143.61,143.56,40.4202]
[1720008274333,32.7,143.64,143.58,17.4116]
[1720008274709,6.9628,143.62,143.58,17.4116]
[1720008275115,6.9638,143.6,143.56,23.0066]
[1720008275416,6.9644,143.59,143.56,16.0411]
[1720008276821,6.9639,143.6,143.56,16.0411]
[1720008277222,39.6634,143.61,143.56,23.0067]
[1720008277422,39.6634,143.61,143.57,6.9651]
[1720008278433,39.6634,143.61,143.56,23.0066]
[1720008278838,0.17,143.63,143.57,17.4127]
[1720008279133,6.9629,143.62,143.57,24.3775]
[1720008279330,6.9629,143.62,143.58,6.9646]
[1720008279512,7.1325,143.63,143.58,6.9646]
[1720008279922,6.9621,143.64,143.59,6.9641]
[1720008280231,6.9626,143.63,143.58,24.3755]
[1720008280839,6.9628,143.62,143.58,24.3755]
[1720008281216,6.9634,143.61,143.57,6.9651]
[1720008281627,6.90829565,143.67,143.56,16.0411]
[1720008281628,6.964,143.6,143.56,16.0411]
[1720008282131,6.9648,143.58,143.55,6.2604]
[1720008282339,6.9649,143.58,143.55,6.2604]
[1720008282518,6.9639,143.6,143.55,13.2265]
[1720008282711,6.9639,143.6,143.56,6.9656]
[1720008283527,6.9639,143.6,143.55,13.2264]
[1720008283817,6.9639,143.6,143.56,6.9656]
[1720008284132,0.17,143.62,143.56,6.9656]
[1720008284323,0.34,143.62,143.55,13.2264]
[1720008285331,6.9643,143.59,143.55,13.2264]
[1720008285542,6.965,143.58,143.55,6.2604]
[1720008286732,6.9652,143.57,143.55,6.2604]
[1720008286929,6.9649,143.58,143.55,6.2604]
[1720008287234,7.1344,143.59,143.55,13.2266]
[1720008288016,0.17,143.59,143.53,23.1430711]
[1720008288316,6.9648,143.58,143.53,40.5609711]
[1720008288618,6.9654,143.57,143.53,40.5609711]
[1720008289232,6.9658,143.56,143.53,16.1760711]
[1720008289839,6.9662,143.55,143.53,16.1760711]
[1720008290017,6.9662,143.55,143.53,0.8123711]
[1720008290216,6.9664,143.55,143.53,0.8123711]
[1720008291015,7.1366,143.54,143.53,0.8123711]
[1720008292239,39.8366,143.54,143.53,0.8123711]
[1720008292435,40.0066,143.54,143.53,0.8123711]
[1720008294925,33.7537,143.53,143.44,17.4278]
[1720008295129,6.9704,143.47,143.43,6.9719]
[1720008295722,39.6697,143.48,143.43,6.9719]
[1720008296740,39.6697,143.48,143.44,6.9715]
[1720008297245,39.6697,143.48,143.43,24.4017]
[1720008297431,32.7,143.48,143.43,17.4299]
[1720008297829,32.7,143.48,143.43,24.4016]
[1720008298219,0.17,143.47,143.42,6.9723]
[1720008298426,0.34,143.47,143.42,6.9723]
[1720008298925,6.9706,143.46,143.42,6.9723]
[1720008299627,0.17,143.47,143.43,6.9719]
[1720008299927,39.6699,143.48,143.43,6.9719]
[1720008300539,6.9701,143.47,143.42,24.4032]
[1720008300928,6.9705,143.46,143.42,24.4032]
[1720008301143,6.9702,143.47,143.42,24.4032]
[1720008301732,32.7,143.48,143.42,17.4309]
[1720008301931,6.9682,143.51,143.46,6.9701]
[1720008302240,6.9682,143.51,143.44,17.4286]
[1720008302241,6.9692,143.49,143.44,24.3997]
[1720008302550,39.60829565,143.53,143.44,17.4286]
[1720008302551,6.9699,143.48,143.44,17.4286]
[1720008303128,6.9705,143.47,143.42,6.9724]
[1720008303346,32.7,143.5,143.42,6.9724]
[1720008303347,6.9707,143.46,143.42,6.9724]
[1720008303554,6.9712,143.45,143.41,17.4316]
[1720008303745,6.9706,143.46,143.42,6.9724]
[1720008304430,6.9706,143.46,143.41,24.4044]
[1720008305346,32.7,143.47,143.4,22.2695]
[1720008305347,50.1258,143.47,143.4,22.2695]
[1720008305553,0.34,143.46,143.4,22.2695]
[1720008306449,6.9711,143.45,143.41,6.9728]
[1720008307257,6.9723,143.43,143.4,22.2695]
[1720008307759,7.1417,143.44,143.4,22.2695]
[1720008307931,6.9717,143.44,143.4,29.2429]
[1720008308136,15.5837,143.54,143.42,20.89]
[1720008308336,6.9682,143.51,143.47,6.9699]
[1720008308752,32.7,143.57,143.48,17.4233]
[1720008308753,50.1135,143.57,143.48,17.4233]
[1720008309059,50.1135,143.57,143.47,6.3964]
[1720008309060,6.9696,143.48,143.47,6.3964]
[1720008309240,6.9696,143.48,143.46,15.905]
[1720008309439,32.7,143.51,143.43,6.3964]
[1720008310041,0.34,143.5,143.43,6.3964]
[1720008310526,0.34,143.5,143.43,13.3683]
[1720008311669,0.34,143.5,143.43,6.3964]
[1720008312334,0.17,143.5,143.45,6.971]
[1720008312740,0.17,143.51,143.45,6.9709]
[1720008312956,0.17,143.51,143.44,17.4286]
[1720008313130,20.0,143.56,143.44,17.4286]
[1720008313333,32.7,143.52,143.46,17.4254]
[1720008313535,32.7,143.52,143.46,24.3956]
[1720008313963,32.7,143.52,143.45,6.971]
[1720008314953,0.34,143.51,143.43,23.8256]
[1720008315933,0.34,143.51,143.43,6.3964]
[1720008316135,32.7,143.49,143.43,6.3964]
[1720008316451,0.17,143.48,143.43,6.3964]
[1720008316762,49.0791,143.51,143.45,6.9707]
[1720008317060,0.34,143.5,143.45,6.9707]
[1720008318546,0.34,143.5,143.44,17.4287]
[1720008320135,0.34,143.5,143.44,24.4001]
[1720008320335,0.34,143.5,143.42,15.905]
[1720008320640,0.34,143.5,143.43,6.9718]
[1720008320855,0.34,143.5,143.43,24.4018]
[1720008321159,0.34,143.5,143.43,17.43]
[1720008322159,0.34,143.5,143.43,24.4019]
[1720008322957,0.34,143.5,143.4,40.9011]
[1720008323262,16.3791,143.51,143.43,34.8589]
[1720008323474,32.7,143.54,143.49,6.969]
[1720008323754,32.7,143.54,143.47,24.3946]
[1720008324464,32.7,143.54,143.47,17.425]
[1720008324837,32.7,143.54,143.47,24.395]
[1720008325035,0.17,143.53,143.47,24.395]
[1720008325248,0.17,143.53,143.44,17.428]
[1720008325543,32.87,143.53,143.44,17.428]
[1720008326245,32.87,143.53,143.46,6.9705]
[1720008326447,0.17,143.52,143.46,6.9705]
[1720008326944,0.17,143.52,143.44,17.428]
[1720008327155,32.7,143.5,143.4,40.9011]
[1720008327348,0.34,143.49,143.41,20.0]
[1720008327856,0.34,143.49,143.44,6.9714]
[1720008328064,0.34,143.49,143.43,24.4016]
[1720008328442,0.34,143.49,143.44,6.9713]
[1720008328642,0.17,143.49,143.45,6.971]
[1720008329546,0.17,143.49,143.44,6.9714]
[1720008329752,0.17,143.49,143.43,24.4017]
[1720008330647,32.7,143.5,143.45,17.4273]
[1720008330846,32.7,143.53,143.46,1.39396356]
[1720008331048,32.7,143.53,143.47,6.9698]
[1720008331346,15.6162,143.56,143.48,6.9694]
[1720008331551,15.6162,143.56,143.47,24.3946]
[1720008331767,15.6162,143.56,143.47,17.4247]
[1720008332267,15.6162,143.56,143.47,24.3947]
[1720008332455,15.6162,143.56,143.49,17.4223]
[1720008332655,15.6162,143.56,143.5,1.39358429]
[1720008333564,6.21777898,143.57,143.5,6.9684]
[1720008333746,6.21777898,143.57,143.49,17.4223]
[1720008333948,6.21777898,143.57,143.49,24.3912]
[1720008334445,6.21777898,143.57,143.42,15.1852]
[1720008334446,32.7,143.51,143.42,15.1852]
[1720008334652,15.4905,143.5,143.4,24.406]
[1720008334851,15.4905,143.5,143.41,6.9728]
[1720008335363,0.34,143.49,143.42,6.9724]
[1720008335571,20.34,143.49,143.43,6.972]
[1720008335957,20.34,143.49,143.42,24.4034]
[1720008336663,20.34,143.49,143.39,40.0535711]
[1720008336859,20.34,143.49,143.4,6.9733]
[1720008337061,32.7,143.48,143.39,22.6195711]
[1720008337255,20.34,143.47,143.39,22.6195711]
[1720008337858,20.34,143.47,143.39,29.5934711]
[1720008339262,20.34,143.47,143.39,7.4343711]
[1720008339572,32.7,143.45,143.39,0.8123711]
[1720008339771,20.34,143.44,143.39,0.8123711]
[1720008340355,0.34,143.44,143.39,0.8123711]
[1720008340675,20.34,143.44,143.39,0.8123711]
[1720008341756,20.0,143.44,143.39,0.8123711]
[1720008341961,48.1905,143.5,143.39,7.7861711]
[1720008341962,15.4905,143.5,143.39,7.7861711]
[1720008342159,32.7,143.47,143.39,0.8123711]
[1720008342359,20.17,143.46,143.39,0.8123711]
[1720008342565,20.17,143.46,143.4,6.9733]
[1720008342853,20.17,143.46,143.39,0.8123711]
[1720008343057,0.17,143.46,143.39,0.8123711]
[1720008343277,0.17,143.46,143.39,7.7862711]
[1720008344470,0.17,143.46,143.4,6.9733]
[1720008345391,0.17,143.46,143.39,7.7861711]
[1720008345686,0.17,143.46,143.39,0.8123711]
[1720008347487,0.17,143.46,143.39,7.7862711]
[1720008347671,20.0,143.49,143.4,17.4334]
[1720008347859,54.40827898,143.5,143.4,24.4065]
[1720008348485,54.40827898,143.5,143.41,6.9729]
[1720008349284,0.34,143.49,143.41,6.9729]
[1720008349472,15.4905,143.5,143.43,6.9717]
[1720008349789,15.4905,143.5,143.44,6.9715]
[1720008349986,15.8264,143.53,143.45,6.9707]
[1720008350204,15.8264,143.53,143.44,24.3997]
[1720008350388,15.8264,143.53,143.44,17.4283]
[1720008350590,15.8264,143.53,143.45,6.9709]
[1720008350897,32.7,143.51,143.41,40.3834]
[1720008351070,20.0,143.5,143.41,40.3834]
[1720008351265,32.7,143.51,143.41,40.3834]
[1720008351577,20.0,143.5,143.41,61.3634]
[1720008351767,0.34,143.49,143.41,40.3834]
[1720008352168,32.7,143.48,143.39,0.8123711]
[1720008352368,20.17,143.47,143.39,7.7859711]
[1720008352672,0.17,143.46,143.4,6.9732]
[1720008353773,0.17,143.46,143.39,0.8123711]
[1720008353987,0.17,143.46,143.39,7.7862711]
[1720008354700,0.17,143.46,143.39,0.8123711]
[1720008355873,0.17,143.46,143.39,7.7861711]
[1720008359488,32.7,143.45,143.39,0.8123711]
[1720008359689,0.17,143.44,143.39,0.8123711]
[1720008359900,0.17,143.44,143.39,7.7862711]
[1720008360188,32.7,143.45,143.4,6.9734]
[1720008361000,32.7,143.45,143.39,25.2208711]
[1720008361594,32.7,143.45,143.4,6.9734]
[1720008363186,32.7,143.45,143.39,25.2208711]
[1720008364682,32.7,143.45,143.4,1.33756399]
[1720008364876,35.149,143.47,143.41,6.9726]
[1720008365224,35.149,143.47,143.41,17.4322]
[1720008365502,35.149,143.47,143.39,0.8123711]
[1720008365703,32.7,143.45,143.39,0.8123711]
[1720008366299,0.17,143.44,143.39,0.8123711]
[1720008366683,32.7,143.42,143.39,0.8123711]
[1720008374217,16.8074,143.41,143.39,0.8123711]
[1720008375721,16.6374,143.41,143.39,0.8123711]
[1720008375911,16.4674,143.41,143.39,0.8123711]
[1720008379137,32.7,143.42,143.39,0.8123711]
[1720008379324,20.0,143.44,143.39,0.8123711]
[1720008379815,16.39,143.4,143.39,0.8123711]
[1720008381734,20.0,143.44,143.39,18.2472711]
[1720008381945,16.39,143.4,143.39,25.2207711]
[1720008382230,16.39,143.4,143.39,0.8123711]
[1720008383645,65.56,143.43,143.39,0.8123711]
[1720008383819,65.56,143.43,143.39,7.7861711]
[1720008384018,65.56,143.43,143.39,0.8123711]
[1720008384240,16.39,143.4,143.39,0.8123711]
[1720008385730,16.39,143.4,143.39,7.7862711]
[1720008387144,16.39,143.4,143.39,0.8123711]
[1720008390944,16.39,143.4,143.39,7.7862711]
[1720008392450,15.7587,143.45,143.39,7.7862711]
[1720008392654,0.17,143.44,143.39,7.7862711]
[1720008392851,16.39,143.4,143.39,0.8123711]
[1720008394358,0.17,143.44,143.39,7.7861711]
[1720008394540,16.39,143.4,143.39,7.7861711]
[1720008394933,16.39,143.4,143.39,0.8123711]
[1720008396050,16.39,143.4,143.39,7.7862711]
[1720008396934,16.39,143.4,143.39,0.8123711]